fUSD/lending_fUSD_20240718
["ID","MTS","AMOUNT","RATE_DAILY","PERIOD"]
[332517478,1721287943758,-615.07,0.00022465,2]
[332517479,1721287943768,-500.0,0.00022465,2]
[332517480,1721287943778,-640.55,0.00022465,2]
[332517481,1721287943788,-500.0,0.00022465,2]
[332517482,1721287943797,-542.98620035,0.00022465,2]
[332517483,1721287943806,-842.93,0.00022465,2]
[332517484,1721287943816,-500.0,0.00022465,2]
[332517485,1721287943826,-500.0,0.00022465,2]
[332517486,1721287943835,-500.0,0.00022465,2]
[332517487,1721287943845,-500.0,0.00022465,2]
[332517488,1721287943854,-515.65,0.00022465,2]
[332517489,1721287943864,-500.0,0.00022465,2]
[332517490,1721287943875,-500.0,0.00022465,2]
[332517491,1721287943885,-500.0,0.00022465,2]
[332517492,1721287943894,-511.48748273,0.00022465,2]
[332517493,1721287943904,-500.0,0.00022465,2]
[332517494,1721287943915,-500.0,0.00022465,2]
[332517495,1721287943925,-500.0,0.00022465,2]
[332517496,1721287943936,-964.94,0.00022465,2]
[332517497,1721287943947,-500.0,0.00022465,2]
[332517498,1721287943958,-592.68,0.00022465,2]
[332517499,1721287943969,-6375.98,0.00022465,2]
[332517500,1721287943980,-1083.93,0.00022465,2]
[332517501,1721287943990,-500.0,0.00022465,2]
[332517502,1721287944000,-500.0,0.00022465,2]
[332517503,1721287944011,-1037.41,0.00022465,2]
[332517504,1721287944021,-1379.21,0.00022465,2]
[332517505,1721287944032,-500.0,0.00022465,2]
[332517506,1721287944043,-500.0,0.00022465,2]
[332517507,1721287944053,-500.0,0.00022465,2]
[332517508,1721287944063,-500.0,0.00022465,2]
[332517509,1721287944073,-500.0,0.00022465,2]
[332517510,1721287944084,-500.0,0.00022465,2]
[332517511,1721287944094,-559.08,0.00022465,2]
[332517512,1721287944104,-1777.51,0.00022465,2]
[332517513,1721287944114,-500.0,0.00022465,2]
[332517514,1721287944126,-1444.47,0.00022465,2]
[332517515,1721287944136,-500.0,0.00022465,2]
[332517516,1721287944146,-1147.47,0.00022465,2]
[332517517,1721287944156,-500.0,0.00022465,2]
[332517518,1721287944166,-500.0,0.00022465,2]
[332517519,1721287944175,-815.97,0.00022465,2]
[332517520,1721287944185,-500.0,0.00022465,2]
[332517521,1721287944195,-500.0,0.00022465,2]
[332517522,1721287944204,-500.0,0.00022465,2]
[332517523,1721287944213,-500.0,0.00022465,2]
[332517524,1721287944223,-1394.22,0.00022465,2]
[332517525,1721287944233,-1149.47,0.00022465,2]
[332517526,1721287944242,-500.0,0.00022465,2]
[332517527,1721287944251,-500.0,0.00022465,2]
[332517528,1721287944260,-500.0,0.00022465,2]
[332517529,1721287944269,-500.0,0.00022465,2]
[332517530,1721287944278,-588.95,0.00022465,2]
[332517531,1721287944288,-500.0,0.00022465,2]
[332517532,1721287944298,-500.0,0.00022465,2]
[332517533,1721287944307,-7884.99,0.00022465,2]
[332517534,1721287944316,-1142.52,0.00022465,2]
[332517535,1721287944325,-500.0,0.00022465,2]
[332517536,1721287944335,-2350.96,0.00022465,2]
[332517537,1721287944344,-500.0,0.00022465,2]
[332517538,1721287944353,-500.0,0.00022465,2]
[332517539,1721287944362,-500.0,0.00022465,2]
[332517540,1721287944374,-567.84,0.00022465,2]
[332517541,1721287944383,-817.71,0.00022465,2]
[332517542,1721287944393,-751.24,0.00022465,2]
[332517543,1721287944402,-500.0,0.00022465,2]
[332517544,1721287944413,-500.0,0.00022465,2]
[332517545,1721287944424,-518.01,0.00022465,2]
[332517546,1721287944435,-9262.82,0.00022465,2]
[332517547,1721287944445,-1047.43,0.00022465,2]
[332517548,1721287944455,-576.17,0.00022465,2]
[332517549,1721287944465,-500.0,0.00022465,2]
[332517550,1721287944475,-500.0,0.00022465,2]
[332517551,1721287944484,-500.0,0.00022465,2]
[332517552,1721287944494,-500.0,0.00022465,2]
[332517553,1721287944504,-500.0,0.00022465,2]
[332517554,1721287944513,-500.0,0.00022465,2]
[332517555,1721287944523,-943.1,0.00022465,2]
[332517556,1721287944532,-714.81,0.00022465,2]
[332517557,1721287944542,-500.0,0.00022465,2]
[332517558,1721287944551,-500.0,0.00022465,2]
[332517559,1721287944561,-580.32124473,0.00022465,2]
[332517560,1721287944570,-500.0,0.00022465,2]
[332517561,1721287944580,-559.22,0.00022465,2]
[332517562,1721287944590,-500.0,0.00022465,2]
[332517563,1721287944600,-1700.34,0.00022465,2]
[332517564,1721287944609,-500.0,0.00022465,2]
[332517565,1721287944625,-671.4,0.00022465,2]
[332517566,1721287944634,-595.86,0.00022465,2]
[332517567,1721287944643,-500.0,0.00022465,2]
[332517568,1721287944653,-500.0,0.00022465,2]
[332517569,1721287944662,-500.0,0.00022465,2]
[332517570,1721287944672,-500.0,0.00022465,2]
[332517571,1721287944682,-500.0,0.00022465,2]
[332517572,1721287944692,-370.72686598,0.00022465,2]
[332517573,1721287944703,-500.0,0.00022465,2]
[332517574,1721287944712,-500.0,0.00022465,2]
[332517575,1721287944722,-500.0,0.00022465,2]
[332517576,1721287944732,-897.02,0.00022465,2]
[332517577,1721287944742,-500.0,0.00022465,2]
[332517578,1721287944751,-500.0,0.00022465,2]
[332517579,1721287944762,-919.85,0.00022465,2]
[332517580,1721287944771,-763.5,0.00022465,2]
[332517581,1721287944781,-915.85,0.00022465,2]
[332517582,1721287944791,-812.96,0.00022465,2]
[332517583,1721287944801,-709.03,0.00022465,2]
[332517584,1721287944811,-500.0,0.00022465,2]
[332517585,1721287944821,-500.0,0.00022465,2]
[332517586,1721287944831,-1583.56,0.00022465,2]
[332517587,1721287944841,-500.0,0.00022465,2]
[332517588,1721287944850,-500.0,0.00022465,2]
[332517589,1721287944860,-634.02,0.00022465,2]
[332517590,1721287944870,-1450.66,0.00022465,2]
[332517591,1721287944883,-1299.19,0.00022465,2]
[332517592,1721287944893,-500.0,0.00022465,2]
[332517593,1721287944902,-500.0,0.00022465,2]
[332517594,1721287944912,-500.0,0.00022465,2]
[332517595,1721287944921,-500.0,0.00022465,2]
[332517596,1721287944931,-500.0,0.00022465,2]
[332517597,1721287944940,-708.78,0.00022465,2]
[332517598,1721287944950,-500.0,0.00022465,2]
[332517599,1721287944960,-500.0,0.00022465,2]
[332517600,1721287944969,-948.76,0.00022465,2]
[332517601,1721287944979,-500.0,0.00022465,2]
[332517602,1721287944988,-500.0,0.00022465,2]
[332517603,1721287944998,-500.0,0.00022465,2]
[332517604,1721287945008,-1051.57,0.00022465,2]
[332517605,1721287945018,-2003.88,0.00022465,2]
[332517606,1721287945028,-796.81,0.00022465,2]
[332517607,1721287945038,-1013.83,0.00022465,2]
[332517608,1721287945047,-601.06,0.00022465,2]
[332517609,1721287945058,-515.65,0.00022465,2]
[332517610,1721287945068,-500.0,0.00022465,2]
[332517611,1721287945078,-500.0,0.00022465,2]
[332517612,1721287945087,-544.27,0.00022465,2]
[332517613,1721287945097,-503.35,0.00022465,2]
[332517614,1721287945106,-500.0,0.00022465,2]
[332517615,1721287945116,-500.0,0.00022465,2]
[332517616,1721287945128,-1547.31,0.00022465,2]
[332517617,1721287945138,-500.0,0.00022465,2]
[332517618,1721287945148,-500.0,0.00022465,2]
[332517619,1721287945157,-500.0,0.00022465,2]
[332517620,1721287945166,-500.0,0.00022465,2]
[332517621,1721287945177,-612.66,0.00022465,2]
[332517622,1721287945186,-677.55,0.00022465,2]
[332517623,1721287945196,-957.7,0.00022465,2]
[332517624,1721287945205,-999.04,0.00022465,2]
[332517625,1721287945215,-500.0,0.00022465,2]
[332517626,1721287945224,-549.83,0.00022465,2]
[332517627,1721287945233,-500.0,0.00022465,2]
[332517628,1721287945242,-798.47,0.00022465,2]
[332517629,1721287945252,-695.01,0.00022465,2]
[332517630,1721287945261,-500.0,0.00022465,2]
[332517631,1721287945271,-500.0,0.00022465,2]
[332517632,1721287945280,-539.79,0.00022465,2]
[332517633,1721287945290,-500.0,0.00022465,2]
[332517634,1721287945300,-500.0,0.00022465,2]
[332517635,1721287945309,-518.09,0.00022465,2]
[332517636,1721287945318,-500.0,0.00022465,2]
[332517637,1721287945328,-500.0,0.00022465,2]
[332517638,1721287945338,-500.0,0.00022465,2]
[332517639,1721287945348,-813.28,0.00022465,2]
[332517640,1721287945358,-500.0,0.00022465,2]
[332517641,1721287945367,-1656.81,0.00022465,2]
[332517642,1721287945378,-500.0,0.00022465,2]
[332517643,1721287945387,-500.0,0.00022465,2]
[332517644,1721287945396,-945.22,0.00022465,2]
[332517645,1721287945407,-500.0,0.00022465,2]
[332517646,1721287945416,-500.0,0.00022465,2]
[332517647,1721287945427,-947.17,0.00022465,2]
[332517648,1721287945729,-500.0,0.00022465,2]
[332517649,1721287945742,-706.37,0.00022465,2]
[332517650,1721287945752,-500.0,0.00022465,2]
[332517651,1721287945763,-500.0,0.00022465,2]
[332517652,1721287945773,-500.0,0.00022465,2]
[332517653,1721287945784,-500.0,0.00022465,2]
[332517654,1721287945795,-502.61589096,0.00022465,2]
[332517655,1721287945804,-500.0,0.00022465,2]
[332517656,1721287945815,-500.0,0.00022465,2]
[332517657,1721287945825,-1135.75,0.00022465,2]
[332517658,1721287945835,-500.0,0.00022465,2]
[332517659,1721287945844,-500.0,0.00022465,2]
[332517660,1721287945854,-500.0,0.00022465,2]
[332517661,1721287945865,-673.53,0.00022465,2]
[332517662,1721287945877,-836.84,0.00022465,2]
[332517663,1721287945887,-3128.96,0.00022465,2]
[332517664,1721287945897,-500.0,0.00022465,2]
[332517665,1721287945906,-500.0,0.00022465,2]
[332517666,1721287945917,-500.0,0.00022465,2]
[332517667,1721287945927,-500.0,0.00022465,2]
[332517668,1721287945937,-500.0,0.00022465,2]
[332517669,1721287945946,-500.0,0.00022465,2]
[332517670,1721287945956,-842.49,0.00022465,2]
[332517671,1721287945966,-500.0,0.00022465,2]
[332517672,1721287945976,-557.31,0.00022465,2]
[332517673,1721287945986,-669.1,0.00022465,2]
[332517674,1721287945995,-500.0,0.00022465,2]
[332517675,1721287946005,-3223.32,0.00022465,2]
[332517676,1721287946015,-542.57,0.00022465,2]
[332517677,1721287946025,-500.0,0.00022465,2]
[332517678,1721287946034,-500.0,0.00022465,2]
[332517679,1721287946044,-500.0,0.00022465,2]
[332517680,1721287946054,-884.02,0.00022465,2]
[332517681,1721287946065,-500.0,0.00022465,2]
[332517682,1721287946075,-500.0,0.00022465,2]
[332517683,1721287946086,-1416.46,0.00022465,2]
[332517684,1721287946096,-525.77,0.00022465,2]
[332517685,1721287946106,-500.0,0.00022465,2]
[332517686,1721287946116,-500.0,0.00022465,2]
[332517687,1721287946127,-500.0,0.00022465,2]
[332517688,1721287946137,-808.77,0.00022465,2]
[332517689,1721287946147,-500.0,0.00022465,2]
[332517690,1721287946157,-888.04,0.00022465,2]
[332517691,1721287946168,-500.0,0.00022465,2]
[332517692,1721287946178,-813.18,0.00022465,2]
[332517693,1721287946188,-2204.96,0.00022465,2]
[332517694,1721287946198,-500.0,0.00022465,2]
[332517695,1721287946209,-500.0,0.00022465,2]
[332517696,1721287946218,-617.34,0.00022465,2]
[332517697,1721287946228,-503.15,0.00022465,2]
[332517698,1721287946237,-500.0,0.00022465,2]
[332517699,1721287946246,-500.0,0.00022465,2]
[332517700,1721287946256,-500.0,0.00022465,2]
[332517701,1721287946266,-500.0,0.00022465,2]
[332517702,1721287946275,-550.97,0.00022465,2]
[332517703,1721287946285,-500.0,0.00022465,2]
[332517704,1721287946296,-698.16,0.00022465,2]
[332517705,1721287946306,-556.49,0.00022465,2]
[332517706,1721287946317,-500.0,0.00022465,2]
[332517707,1721287946327,-500.0,0.00022465,2]
[332517708,1721287946339,-773.79,0.00022465,2]
[332517709,1721287946350,-500.0,0.00022465,2]
[332517710,1721287946360,-1258.11,0.00022465,2]
[332517711,1721287946371,-1541.61,0.00022465,2]
[332517712,1721287946381,-500.0,0.00022465,2]
[332517713,1721287946391,-1497.76,0.00022465,2]
[332517714,1721287946400,-500.0,0.00022465,2]
[332517715,1721287946409,-923.36,0.00022465,2]
[332517716,1721287946418,-500.0,0.00022465,2]
[332517717,1721287946429,-500.0,0.00022465,2]
[332517718,1721287946442,-500.0,0.00022465,2]
[332517719,1721287946451,-500.0,0.00022465,2]
[332517720,1721287946461,-1777.63,0.00022465,2]
[332517721,1721287946472,-500.0,0.00022465,2]
[332517722,1721287946482,-500.0,0.00022465,2]
[332517723,1721287946492,-500.0,0.00022465,2]
[332517724,1721287946502,-1751.66,0.00022465,2]
[332517725,1721287946511,-500.0,0.00022465,2]
[332517726,1721287946520,-500.0,0.00022465,2]
[332517727,1721287946534,-500.0,0.00022465,2]
[332517728,1721287946544,-500.0,0.00022465,2]
[332517729,1721287946555,-600.34,0.00022465,2]
[332517730,1721287946566,-1440.65,0.00022465,2]
[332517731,1721287946575,-702.74,0.00022465,2]
[332517732,1721287946585,-748.62,0.00022465,2]
[332517733,1721287946596,-500.0,0.00022465,2]
[332517734,1721287946606,-500.0,0.00022465,2]
[332517735,1721287946617,-500.0,0.00022465,2]
[332517736,1721287946630,-500.0,0.00022465,2]
[332517737,1721287946639,-500.0,0.00022465,2]
[332517738,1721287946648,-500.0,0.00022465,2]
[332517739,1721287946658,-1459.37,0.00022465,2]
[332517740,1721287946667,-500.0,0.00022465,2]
[332517741,1721287946677,-834.65,0.00022465,2]
[332517742,1721287946687,-574.9,0.00022465,2]
[332517743,1721287946698,-1351.16,0.00022465,2]
[332517744,1721287946707,-967.34,0.00022465,2]
[332517745,1721287946717,-500.0,0.00022465,2]
[332517746,1721287946726,-945.46,0.00022465,2]
[332517747,1721287946736,-6789.46,0.00022465,2]
[332517748,1721287946745,-500.0,0.00022465,2]
[332517749,1721287946754,-500.0,0.00022465,2]
[332517750,1721287946763,-1649.03,0.00022465,2]
[332517751,1721287946773,-500.0,0.00022465,2]
[332517752,1721287946782,-846.83,0.00022465,2]
[332517753,1721287946791,-3838.48,0.00022465,2]
[332517754,1721287946801,-727.83,0.00022465,2]
[332517755,1721287946810,-500.0,0.00022465,2]
[332517756,1721287946820,-500.0,0.00022465,2]
[332517757,1721287946830,-500.0,0.00022465,2]
[332517758,1721287946840,-500.0,0.00022465,2]
[332517759,1721287946850,-500.0,0.00022465,2]
[332517760,1721287946860,-592.88,0.00022465,2]
[332517761,1721287946870,-1099.8,0.00022465,2]
[332517762,1721287946886,-495.08629023,0.00022465,2]
[332517763,1721287946896,-500.0,0.00022465,2]
[332517764,1721287946906,-500.0,0.00022465,2]
[332517765,1721287946917,-500.0,0.00022465,2]
[332517766,1721287946927,-758.27,0.00022465,2]
[332517767,1721287946936,-1314.69,0.00022465,2]
[332517768,1721287946946,-660.25,0.00022465,2]
[332517769,1721287946956,-500.0,0.00022465,2]
[332517770,1721287946966,-1225.2,0.00022465,2]
[332517771,1721287946977,-690.8,0.00022465,2]
[332517772,1721287946987,-500.0,0.00022465,2]
[332517773,1721287946997,-500.0,0.00022465,2]
[332517774,1721287947009,-815.9,0.00022465,2]
[332517775,1721287947019,-500.0,0.00022465,2]
[332517776,1721287947030,-764.9,0.00022465,2]
[332517777,1721287947040,-500.0,0.00022465,2]
[332517778,1721287947050,-500.0,0.00022465,2]
[332517779,1721287947060,-500.0,0.00022465,2]
[332517780,1721287947070,-1445.6,0.00022465,2]
[332517781,1721287947080,-1211.24,0.00022465,2]
[332517782,1721287947089,-1000.0,0.00022465,2]
[332517783,1721287947099,-500.0,0.00022465,2]
[332517784,1721287947108,-500.0,0.00022465,2]
[332517785,1721287947118,-500.0,0.00022465,2]
[332517786,1721287947133,-500.0,0.00022465,2]
[332517787,1721287947142,-1017.79,0.00022465,2]
[332517788,1721287947153,-500.0,0.00022465,2]
[332517789,1721287947163,-500.0,0.00022465,2]
[332517790,1721287947172,-500.0,0.00022465,2]
[332517791,1721287947182,-500.0,0.00022465,2]
[332517792,1721287947192,-500.0,0.00022465,2]
[332517793,1721287947201,-500.0,0.00022465,2]
[332517794,1721287947211,-819.77,0.00022465,2]
[332517795,1721287947221,-500.0,0.00022465,2]
[332517796,1721287947230,-500.0,0.00022465,2]
[332517797,1721287947239,-500.0,0.00022465,2]
[332517798,1721287947249,-500.0,0.00022465,2]
[332517799,1721287947258,-843.65,0.00022465,2]
[332517800,1721287947268,-500.0,0.00022465,2]
[332517801,1721287947278,-508.09,0.00022465,2]
[332517802,1721287947288,-1121.8,0.00022465,2]
[332517803,1721287947298,-500.0,0.00022465,2]
[332517804,1721287947307,-4510.49,0.00022465,2]
[332517805,1721287947317,-500.0,0.00022465,2]
[332517806,1721287947327,-500.0,0.00022465,2]
[332517807,1721287947337,-500.0,0.00022465,2]
[332517808,1721287947346,-500.0,0.00022465,2]
[332517809,1721287947355,-548.62,0.00022465,2]
[332517810,1721287947365,-615.98,0.00022465,2]
[332517811,1721287947376,-732.51,0.00022465,2]
[332517812,1721287947391,-500.0,0.00022465,2]
[332517813,1721287947403,-500.0,0.00022465,2]
[332517814,1721287947413,-500.0,0.00022465,2]
[332517815,1721287947422,-500.0,0.00022465,2]
[332517816,1721287947433,-727.51,0.00022465,2]
[332517817,1721287947442,-500.0,0.00022465,2]
[332517818,1721287947452,-699.69,0.00022465,2]
[332517819,1721287947462,-780.84,0.00022465,2]
[332517820,1721287947471,-500.0,0.00022465,2]
[332517821,1721287947481,-985.19,0.00022465,2]
[332517822,1721287947491,-500.0,0.00022465,2]
[332517823,1721287947500,-2219.16,0.00022465,2]
[332517824,1721287947509,-2008.64,0.00022465,2]
[332517825,1721287947519,-661.47,0.00022465,2]
[332517826,1721287947529,-500.0,0.00022465,2]
[332517827,1721287947538,-500.0,0.00022465,2]
[332517828,1721287947548,-707.34,0.00022465,2]
[332517829,1721287947557,-776.84,0.00022465,2]
[332517830,1721287947566,-500.0,0.00022465,2]
[332517831,1721287947575,-6067.08,0.00022465,2]
[332517832,1721287947585,-500.0,0.00022465,2]
[332517833,1721287947595,-2197.33,0.00022465,2]
[332517834,1721287947605,-500.0,0.00022465,2]
[332517835,1721287947617,-500.0,0.00022465,2]
[332517836,1721287947634,-813.45,0.00022465,2]
[332517837,1721287947644,-500.0,0.00022465,2]
[332517838,1721287947654,-500.0,0.00022465,2]
[332517839,1721287947663,-500.0,0.00022465,2]
[332517840,1721287947673,-500.0,0.00022465,2]
[332517841,1721287947683,-500.0,0.00022465,2]
[332517842,1721287947692,-1222.6,0.00022465,2]
[332517843,1721287947702,-685.95,0.00022465,2]
[332517844,1721287947712,-885.84,0.00022465,2]
[332517845,1721287947722,-500.0,0.00022465,2]
[332517846,1721287947731,-500.0,0.00022465,2]
[332517847,1721287947741,-500.0,0.00022465,2]
[332517848,1721287947751,-703.44,0.00022465,2]
[332517849,1721287947760,-589.04,0.00022465,2]
[332517850,1721287947770,-919.77,0.00022465,2]
[332517851,1721287947780,-500.0,0.00022465,2]
[332517852,1721287947790,-500.0,0.00022465,2]
[332517853,1721287947800,-2956.08,0.00022465,2]
[332517854,1721287947809,-500.0,0.00022465,2]
[332517855,1721287947819,-500.0,0.00022465,2]
[332517856,1721287947829,-699.95,0.00022465,2]
[332517857,1721287947838,-500.0,0.00022465,2]
[332517858,1721287947847,-758.73,0.00022465,2]
[332517859,1721287947856,-500.0,0.00022465,2]
[332517860,1721287947865,-1023.99,0.00022465,2]
[332517861,1721287947876,-799.42,0.00022465,2]
[332517862,1721287947887,-500.0,0.00022465,2]
[332517863,1721287947897,-500.0,0.00022465,2]
[332517864,1721287947906,-500.0,0.00022465,2]
[332517865,1721287947915,-500.0,0.00022465,2]
[332517866,1721287947927,-893.45,0.00022465,2]
[332517867,1721287947937,-1159.85,0.00022465,2]
[332517868,1721287947946,-500.0,0.00022465,2]
[332517869,1721287947956,-500.0,0.00022465,2]
[332517870,1721287947965,-500.0,0.00022465,2]
[332517871,1721287947975,-973.9,0.00022465,2]
[332517872,1721287947984,-500.0,0.00022465,2]
[332517873,1721287947993,-500.0,0.00022465,2]
[332517874,1721287948003,-500.0,0.00022465,2]
[332517875,1721287948012,-500.0,0.00022465,2]
[332517876,1721287948021,-500.0,0.00022465,2]
[332517877,1721287948031,-500.0,0.00022465,2]
[332517878,1721287948040,-500.0,0.00022465,2]
[332517879,1721287948049,-500.0,0.00022465,2]
[332517880,1721287948060,-500.0,0.00022465,2]
[332517881,1721287948069,-500.0,0.00022465,2]
[332517882,1721287948079,-622.67,0.00022465,2]
[332517883,1721287948088,-500.0,0.00022465,2]
[332517884,1721287948098,-1997.06,0.00022465,2]
[332517885,1721287948108,-500.0,0.00022465,2]
[332517886,1721287948118,-3632.25,0.00022465,2]
[332517887,1721287948130,-500.0,0.00022465,2]
[332517888,1721287948139,-695.06,0.00022465,2]
[332517889,1721287948149,-445.12807451,0.00022478,2]
[332517890,1721287948158,-414.54398897,0.00022491,2]
[332517891,1721287948169,-150.0,0.00022495,2]
[332517892,1721287948285,-33424.71407894,0.000225,2]
[332517893,1721287948295,-89820.74305352,0.000225,2]
[332517894,1721287948304,-161.84605211,0.000225,2]
[332517895,1721287948314,-934.65578593,0.00022503,2]
[332517896,1721287948325,-267.41464615,0.00022527,2]
[332517897,1721287948334,-267.41464615,0.00022532,2]
[332517898,1721287948344,-934.65578593,0.00022541,2]
[332517899,1721287948354,-161.84605211,0.0002255,2]
[332517900,1721287948363,-414.54398897,0.00022551,2]
[332517901,1721287948372,-934.65578593,0.00022557,2]
[332517902,1721287948385,-445.12807451,0.00022569,2]
[332517903,1721287948395,-934.65578593,0.00022578,2]
[332517904,1721287948404,-166.66666666,0.00022587,2]
[332517905,1721287948413,-197.82356527,0.00022598,2]
[332517906,1721287948423,-157.03911617,0.00022601,2]
[332517907,1721287948434,-267.41464615,0.00022602,2]
[332517908,1721287948444,-180.43,0.00022603,2]
[332517909,1721287948453,-449.17565101,0.00022603,2]
[332517910,1721287948463,-161.84605211,0.00022603,2]
[332517911,1721287948472,-449.17565101,0.00022608,2]
[332517912,1721287948481,-414.54398897,0.00022627,2]
[332517913,1721287948491,-414.54398897,0.00022631,2]
[332517914,1721287948500,-166.66666666,0.00022645,2]
[332517915,1721287948509,-154.66033317,0.00022647,2]
[332517916,1721287948518,-151.42828929,0.00022649,2]
[332517917,1721287948528,-371.32697632,0.0002266,2]
[332517918,1721287948538,-161.84605211,0.00022669,2]
[332517919,1721287948547,-154.98095525,0.00022694,2]
[332517920,1721287948555,-805.34233156,0.00022695,2]
[332517921,1721287948564,-161.84605211,0.00022698,2]
[332517922,1721287948574,-237.14813123,0.00022698,2]
[332517923,1721287948583,-2000.0,0.000227,2]
[332517924,1721287948592,-279.0,0.000227,2]
[332517925,1721287948602,-156.65385581,0.000227,2]
[332517926,1721287948612,-371.32697632,0.00022705,2]
[332517927,1721287948623,-166.66666666,0.00022712,2]
[332517928,1721287948636,-197.82356527,0.00022717,2]
[332517929,1721287948645,-161.35093905,0.00022721,2]
[332517930,1721287948655,-550.98546916,0.00022723,2]
[332517931,1721287948666,-550.98546916,0.00022737,2]
[332517932,1721287948676,-511.46468687,0.00022739,2]
[332517933,1721287948684,-500.0,0.00022739,2]
[332517934,1721287948694,-1548.92,0.00022739,2]
[332517935,1721287948704,-500.0,0.00022739,2]
[332517936,1721287948713,-500.0,0.00022739,2]
[332517937,1721287948722,-500.0,0.00022739,2]
[332517938,1721287948731,-500.0,0.00022739,2]
[332517939,1721287948740,-500.0,0.00022739,2]
[332517940,1721287948749,-600.3095784,0.00022739,2]
[332517941,1721287948758,-500.0,0.00022739,2]
[332517942,1721287948767,-500.0,0.00022739,2]
[332517943,1721287948776,-500.0,0.00022739,2]
[332517944,1721287948785,-500.0,0.00022739,2]
[332517945,1721287948794,-500.0,0.00022739,2]
[332517946,1721287948803,-500.0,0.00022739,2]
[332517947,1721287948812,-500.0,0.00022739,2]
[332517948,1721287948821,-500.0,0.00022739,2]
[332517949,1721287948831,-500.0,0.00022739,2]
[332517950,1721287948840,-218.33504558,0.00022739,2]
[332517951,1721287948850,-500.0,0.00022739,2]
[332517952,1721287948859,-500.0,0.00022739,2]
[332517953,1721287948868,-500.0,0.00022739,2]
[332517954,1721287948880,-611.9835037,0.00022739,2]
[332517955,1721287948889,-500.0,0.00022739,2]
[332517956,1721287948900,-500.0,0.00022739,2]
[332517957,1721287948909,-500.0,0.00022739,2]
[332517958,1721287948918,-500.0,0.00022739,2]
[332517959,1721287948927,-500.0,0.00022739,2]
[332517960,1721287948936,-500.0,0.00022739,2]
[332517961,1721287948946,-500.0,0.00022739,2]
[332517962,1721287948955,-227.30408451,0.00022739,2]
[332517963,1721287948965,-500.0,0.00022739,2]
[332517964,1721287948975,-500.0,0.00022739,2]
[332517965,1721287948984,-500.0,0.00022739,2]
[332517966,1721287948993,-500.0,0.00022739,2]
[332517967,1721287949002,-500.0,0.00022739,2]
[332517968,1721287949012,-500.0,0.00022739,2]
[332517969,1721287949021,-502.97340014,0.00022739,2]
[332517970,1721287949032,-500.0,0.00022739,2]
[332517971,1721287949041,-500.0,0.00022739,2]
[332517972,1721287949050,-500.0,0.00022739,2]
[332517973,1721287949060,-500.0,0.00022739,2]
[332517974,1721287949069,-500.0,0.00022739,2]
[332517975,1721287949079,-500.0,0.00022739,2]
[332517976,1721287949088,-500.0,0.00022739,2]
[332517977,1721287949098,-500.0,0.00022739,2]